bitfinex/quotes_ETHUSD_20220119
["timestamp","ask_amount","ask_price","bid_price","bid_amount"]
[1642572090484,2.31753274,3102.9,3102.7,0.00625264]
[1642572090683,2.08509983,3102.8,3102.7,0.00625264]
[1642572090883,2.08509983,3102.8,3102.7,2.74454613]
[1642572091084,1.00170527,3102.8,3102.7,2.74454613]
[1642572091482,0.00170527,3102.8,3102.7,2.74454613]
[1642572091686,1.00170527,3102.8,3102.7,2.74454613]
[1642572092483,0.00170527,3102.8,3102.7,2.74454613]
[1642572092683,1.80794527,3102.8,3102.7,2.74454613]
[1642572092885,1.51714527,3102.8,3102.7,2.74454613]
[1642572093083,0.80624,3102.8,3102.7,2.74454613]
[1642572093283,0.80624,3102.8,3102.7,1.12976768]
[1642572093485,0.80624,3102.8,3102.1,1.4879]
[1642572093947,0.80624,3102.8,3102.2,0.00341054]
[1642572095150,0.80628,3102.7,3102.2,0.00341054]
[1642572095650,0.80629,3102.6,3102.2,0.00341054]
[1642572096050,0.80629,3102.6,3102.2,1.30566409]
[1642572096255,1.0,3102.8,3102.2,0.00341054]
[1642572096451,1.06733378,3102.8,3102.3,0.00284212]
[1642572096750,1.06733378,3102.8,3102.1,1.83441558]
[1642572096751,0.06733378,3102.8,3102.2,0.00341054]
[1642572097354,0.80623,3102.7,3102.2,0.00341054]
[1642572097886,0.51083,3102.7,3101.8,2.00568423]
[1642572098085,0.81083,3102.7,3101.8,2.00568423]
[1642572098285,0.80639,3102.5,3101.9,0.00511581]
[1642572098686,2.52589707,3102.4,3101.9,0.00511581]
[1642572098888,2.98989707,3102.4,3101.9,0.00511581]
[1642572099086,1.0,3102.3,3101.8,0.00568423]
[1642572099486,0.3,3102.2,3101.8,0.00568423]
[1642572099689,0.80651,3102.1,3101.8,0.00568423]
[1642572099892,0.80651,3102.1,3101.6,0.00682108]
[1642572100087,0.80649,3102.0,3101.3,3.43081556]
[1642572100290,0.80649,3102.0,3101.4,0.00795793]
[1642572100491,4.60291707,3102.4,3101.5,1.61920054]
[1642572100492,2.52589707,3102.4,3101.5,1.61920054]
[1642572100691,2.52589707,3102.4,3101.6,2.23716241]
[1642572100890,2.52589707,3102.4,3101.6,4.16318403]
[1642572101090,2.52589707,3102.4,3101.7,0.00625266]
[1642572101333,0.05123902,3102.1,3101.7,0.00625266]
[1642572102129,0.05123902,3102.1,3101.7,1.6254532]
[1642572102329,0.05123902,3102.1,3101.8,1.84491803]
[1642572102534,0.05123902,3102.1,3101.8,1.85060226]
[1642572102731,0.05123902,3102.1,3101.9,0.00511581]
[1642572103131,0.55987902,3102.3,3101.9,0.00511581]
[1642572103731,0.55987902,3102.3,3101.8,0.00568423]
[1642572103931,4.94500707,3102.4,3102.3,1.11975804]
[1642572104132,5.94500707,3102.4,3102.3,1.11975804]
[1642572104332,5.94500707,3102.4,3102.3,1.12260016]
[1642572105988,6.24500707,3102.4,3102.3,1.12260016]
[1642572106587,4.94500707,3102.4,3102.3,1.12260016]
[1642572107989,12.69170707,3102.4,3102.3,1.12260016]
[1642572108190,12.39840707,3102.4,3102.3,1.12260016]
[1642572108849,1.61308,3102.2,3101.4,1.61920054]
[1642572109034,1.61308,3102.2,3101.4,1.91920054]
[1642572109035,2.88362,3102.1,3101.4,1.91920054]
[1642572109236,2.88362,3102.1,3101.5,0.00454738]
[1642572109635,1.0,3102.0,3101.5,0.00454738]
[1642572110035,3.07708,3102.1,3101.4,0.00511581]
[1642572110240,0.80652,3101.9,3101.4,0.00511581]
[1642572110638,0.80652,3101.9,3101.3,0.00568423]
[1642572111038,0.80652,3101.9,3101.3,1.62488477]
[1642572111239,0.80652,3101.9,3101.3,0.00568423]
[1642572111439,1.61307,3101.9,3101.4,0.00511581]
[1642572111638,1.61307,3101.9,3101.2,1.61920054]
[1642572111639,0.80656,3101.7,3101.3,0.00568423]
[1642572112339,0.80656,3101.7,3101.2,1.62545319]
[1642572112587,1.61312,3101.7,3101.2,0.00625265]
[1642572112787,0.80659,3101.5,3101.3,0.00568423]
[1642572112992,0.80659,3101.5,3101.2,0.00625265]
[1642572113391,0.50859,3101.5,3101.3,2.73936568]
[1642572113788,0.50859,3101.5,3101.4,0.00511581]
[1642572113992,0.50859,3101.5,3101.4,2.74448149]
[1642572115601,1.50859,3101.5,3101.4,2.74448149]
[1642572116440,0.50859,3101.5,3101.4,2.74448149]
[1642572116640,1.50859,3101.5,3101.4,2.74448149]
[1642572117642,1.50859,3101.5,3100.8,7.45]
[1642572117643,6.05,3101.4,3100.8,7.45]
[1642572117845,15.58014897,3101.3,3100.3,4.10725865]
[1642572118046,6.8,3100.9,3100.1,1.3500467]
[1642572118251,0.464,3100.8,3100.4,0.00284212]
[1642572118444,6.4467,3100.7,3100.4,0.00284212]
[1642572118645,1.0,3100.6,3100.4,0.00284212]
[1642572118842,6.4467,3100.5,3100.4,0.00284212]
[1642572119246,6.85,3100.4,3100.1,1.3500467]
[1642572119449,6.9107,3100.3,3100.1,1.3500467]
[1642572119645,7.4467,3100.3,3100.2,0.00113685]
[1642572119846,7.9107,3100.3,3100.2,0.00113685]
[1642572120300,7.9107,3100.3,3098.9,4.10725865]
[1642572120301,0.807085,3100.0,3098.9,4.10725865]
[1642572120501,7.71787,3099.9,3098.9,4.10725865]
[1642572120697,7.71787,3099.9,3099.0,0.00682108]
[1642572120900,1.0,3099.8,3099.0,0.00682108]
[1642572121096,6.0,3099.6,3098.6,2.20914758]
[1642572121297,1.61449,3099.4,3098.3,3.23840108]
[1642572121499,0.8073294,3099.1,3098.7,0.00170527]
[1642572121797,0.464,3099.0,3098.7,0.00170527]
[1642572121998,6.9107,3099.0,3098.7,0.00170527]
[1642572122396,6.9107,3099.0,3098.7,1.15205675]
[1642572122698,8.52534,3099.0,3098.8,0.00113685]
[1642572123595,8.52534,3099.0,3098.4,0.00341054]
[1642572123596,6.6067,3099.0,3098.4,0.00341054]
[1642572123838,6.6067,3099.0,3098.2,3.22254323]
[1642572124039,0.00284212,3098.9,3098.2,4.24070823]
[1642572124237,0.00284212,3098.9,3098.2,4.54070823]
[1642572124437,0.00227369,3098.8,3098.6,1.12286105]
[1642572124841,0.00170527,3098.7,3098.6,0.3]
[1642572125143,0.00284212,3098.7,3098.6,0.3]
[1642572125341,0.00284212,3098.7,3098.2,0.018165]
[1642572125741,0.00113685,3098.6,3098.2,0.018165]
[1642572125949,0.00113685,3098.6,3098.3,1.53050329]
[1642572126143,0.02845817,3098.7,3098.3,2.67701933]
[1642572126341,0.02845817,3098.7,3098.3,2.97701933]
[1642572126542,0.00113685,3098.6,3098.3,2.97701933]
[1642572126943,0.00113685,3098.6,3098.3,1.83050329]
[1642572128694,0.02871947,3098.8,3098.3,1.83050329]
[1642572128891,0.75922505,3099.0,3098.3,1.83050329]
[1642572128892,0.52273954,3099.0,3098.3,1.83050329]
[1642572129091,0.52273954,3099.0,3098.4,0.00113685]
[1642572129291,0.00170527,3098.9,3098.6,1.61995208]
[1642572129691,0.464,3099.3,3098.6,1.61995208]
[1642572129692,0.52387638,3098.8,3098.6,1.61995208]
[1642572130095,0.52273954,3098.8,3098.5,1.61995208]
[1642572130298,0.52273954,3098.8,3098.6,1.61995208]
[1642572130499,0.464,3098.7,3098.4,0.00113685]
[1642572130699,0.52273954,3098.6,3098.4,0.00113685]
[1642572130897,0.98673954,3098.6,3098.4,0.00113685]
[1642572131097,0.98673954,3098.6,3098.3,1.62165735]
[1642572131358,2.09405954,3098.6,3098.3,1.62165735]
[1642572131955,2.09405954,3098.6,3098.3,0.00170527]
[1642572132556,2.42221,3098.5,3098.3,0.00170527]
[1642572132756,0.80741,3098.4,3098.3,0.00170527]
[1642572132958,1.28673954,3098.6,3098.3,0.00170527]
[1642572133559,2.42218,3098.5,3098.3,0.00170527]
[1642572133761,0.51497,3098.5,3098.3,0.00170527]
[1642572134163,1.0,3098.9,3098.7,1.62417643]
[1642572134364,0.464,3098.8,3098.7,1.62417643]
[1642572134563,6.91933684,3098.8,3098.7,1.62417643]
[1642572135097,7.91933684,3098.8,3098.7,1.62417643]
[1642572135694,10.34137904,3098.8,3098.7,1.62417643]
[1642572136194,10.64137904,3098.8,3098.7,1.62417643]
[1642572136606,8.46494,3098.7,3098.3,0.00170527]
[1642572136801,7.0675,3098.6,3098.3,0.00170527]
[1642572137095,4.64049285,3098.5,3098.3,0.00284211]
[1642572137297,7.314,3098.4,3098.3,0.00284211]
[1642572137494,10.95449285,3098.4,3098.3,0.00284211]
[1642572137697,11.95449285,3098.4,3098.3,2.74473827]
[1642572137894,6.85,3098.3,3098.2,0.018165]
[1642572138097,12.25449285,3098.3,3098.2,6.5e-05]
[1642572138302,12.25449285,3098.3,3097.3,0.0018165]
[1642572138303,18.79,3098.1,3097.3,0.0018165]
[1642572138499,5.796,3097.5,3097.3,0.010899]
[1642572138701,5.796,3097.5,3097.4,0.00511582]
[1642572138945,6.85,3097.4,3096.8,0.05005]
[1642572139149,6.85,3097.4,3096.9,2.74295448]
[1642572139150,7.7287538,3097.3,3096.9,2.74295448]
[1642572139345,7.7287538,3097.3,3097.0,2.74295448]
[1642572139545,7.85,3097.2,3096.9,0.00284211]
[1642572139746,9.4658,3097.2,3097.1,0.00170527]
[1642572139944,7.314,3097.1,3096.8,5e-05]
[1642572140147,14.3076,3097.0,3096.6,0.0018165]
[1642572140446,9.59343485,3096.9,3095.9,0.0161503]
[1642572140646,15.92353,3096.8,3096.7,0.00227369]
[1642572140847,0.80798,3096.7,3096.0,0.00625265]
[1642572141046,6.9216,3096.6,3096.0,0.00625265]
[1642572141249,6.85,3096.5,3095.7,1.53212007]
[1642572141448,6.9216,3096.4,3095.7,1.53212007]
[1642572141651,0.464,3096.3,3095.8,0.00113685]
[1642572141847,0.46570527,3096.3,3095.8,0.00113685]
[1642572142151,0.00113684,3096.2,3095.8,0.00113685]
[1642572142352,0.00113684,3096.2,3095.1,1.5757672]
[1642572142353,6.85,3096.0,3095.1,1.5757672]
[1642572142627,7.26,3095.9,3095.3,0.00284212]
[1642572142825,2.4338809,3095.8,3095.3,0.00284212]
[1642572143026,7.72989,3095.7,3095.3,0.00284212]
[1642572143224,6.85,3095.4,3095.1,1.5757672]
[1642572143427,6.85,3095.4,3094.3,1.52176858]
[1642572143428,6.9216,3095.3,3094.3,1.52176858]
[1642572143630,6.80883009,3095.2,3093.9,1.2173]
[1642572143825,6.80883009,3095.2,3094.4,0.00511581]
[1642572143826,6.9216,3095.1,3094.4,0.00511581]
[1642572144025,5.4986,3094.8,3094.4,0.00511581]
[1642572144230,6.9216,3094.7,3093.8,1.10613209]
[1642572144426,8.73016,3094.7,3093.8,1.10613209]
[1642572144726,0.8085776,3094.5,3093.8,0.95556367]
[1642572144927,6.9216,3094.4,3093.8,0.95556367]
[1642572145125,1.80843,3094.7,3094.6,0.39339336]
[1642572145326,2.27243,3094.7,3094.6,0.39339336]
[1642572145628,1.27243,3094.7,3094.6,0.39339336]
[1642572145830,7.15,3094.6,3093.9,0.00397897]
[1642572146029,5.796,3094.3,3093.9,0.00397897]
[1642572146227,0.80859,3094.1,3093.8,0.00454739]
[1642572146447,6.9268,3094.0,3093.8,0.00454739]
[1642572146646,7.85,3093.9,3093.8,0.00454739]
[1642572146856,14.7768,3093.9,3093.8,0.00454739]
[1642572147045,15.0768,3093.9,3093.8,0.00454739]
[1642572147246,6.85,3093.8,3093.7,0.05005]
[1642572147451,6.85,3093.7,3092.9,0.0018165]
[1642572147650,6.85,3093.7,3092.1,0.0018165]
[1642572147651,0.01235271,3093.1,3092.1,0.0018165]
[1642572147850,0.01235271,3093.1,3091.5,2.08175169]
[1642572147851,6.85,3092.3,3091.5,2.08175169]
[1642572148050,6.9268,3092.2,3091.5,1.98175169]
[1642572148349,6.9268,3092.2,3092.1,1.33045865]
[1642572148752,6.9268,3092.2,3092.1,1.34012185]
[1642572148949,5.796,3093.4,3092.2,6.85]
[1642572149154,0.464,3093.3,3092.4,0.01249086]
[1642572149352,0.464,3093.2,3092.4,0.01249086]
[1642572149546,0.464,3093.2,3092.3,2.16958635]
[1642572149547,0.464,3093.2,3092.3,1.47378183]
[1642572149746,0.00341054,3093.1,3092.3,1.17378183]
[1642572149947,0.00341054,3093.1,3092.3,0.47378183]
[1642572150198,0.00284211,3093.0,3092.3,0.17378183]
[1642572150403,0.00284211,3093.0,3092.4,1.3818191]
[1642572150597,2.464,3093.8,3092.4,1.3818191]
[1642572150598,0.00227369,3092.9,3092.4,1.6818191]
[1642572150799,2.41627369,3093.8,3092.4,1.9818191]
[1642572150998,0.464,3093.8,3092.4,1.9818191]
[1642572151199,0.03476085,3093.1,3092.5,0.00227369]
[1642572151399,0.03476085,3093.1,3092.6,1.45373289]
[1642572151602,3.9818165,3094.7,3094.4,4.33694041]
[1642572151801,6.764,3094.5,3094.4,4.33694041]
[1642572152004,6.927,3094.5,3094.4,4.33694041]
[1642572152200,6.463,3094.5,3094.4,4.33694041]
[1642572152402,6.463,3094.5,3094.4,5.55682295]
[1642572152606,41.26775959,3094.4,3092.3,1.16106]
[1642572152800,6.463,3094.5,3092.3,1.16106]
[1642572152801,2.0,3094.3,3092.6,0.16106]
[1642572153003,0.00397896,3094.4,3092.6,0.16106]
[1642572153201,0.00397896,3094.4,3092.7,0.00568424]
[1642572153405,6.463,3094.5,3092.9,0.01249368]
[1642572153406,0.00341054,3094.3,3092.9,0.01249368]
[1642572153604,0.00341054,3094.3,3094.2,1.08573988]
[1642572153874,6.463,3094.5,3094.2,2.64071162]
[1642572154264,6.463,3094.5,3094.2,2.94071162]
[1642572154265,1.9351703,3094.5,3094.2,2.94071162]
[1642572154968,0.3161566,3094.5,3094.2,2.64071162]
[1642572155169,0.3161566,3094.5,3094.2,3.24071162]
[1642572155572,0.0018165,3094.7,3094.5,0.58177922]
[1642572155772,1.61854202,3095.4,3094.7,0.07377381]
[1642572155973,1.61854202,3095.4,3094.8,1.5097805]
[1642572156169,1.61854202,3095.4,3094.8,2.68528652]
[1642572156372,0.0018165,3095.5,3094.9,0.22599297]
[1642572156575,0.0018165,3095.5,3094.9,20.01599297]
[1642572156774,0.00568424,3095.4,3095.0,0.08866051]
[1642572156973,0.00568424,3095.4,3095.0,1.08866051]
[1642572157176,0.00511581,3095.3,3095.1,0.69021004]
[1642572157598,0.0018165,3095.5,3095.2,6.85]
[1642572157800,8.83288169,3096.8,3095.4,0.16106]
[1642572157998,8.83288169,3096.8,3095.4,0.87126]
[1642572158398,8.83288169,3096.8,3095.5,0.464]
[1642572158600,8.83288169,3096.8,3095.6,3.05889131]
[1642572158798,6.83288169,3096.8,3095.6,3.05889131]
[1642572158999,6.83288169,3096.8,3095.7,1.96861]
[1642572159200,6.83288169,3096.8,3095.7,1.16106]
[1642572159397,6.53609819,3096.8,3095.9,6.85]
[1642572159598,0.0018165,3096.9,3096.0,3.66237799]
[1642572159803,0.00852635,3096.7,3096.0,4.26237799]
[1642572160004,0.00852635,3096.7,3096.1,2.31515583]
[1642572160205,0.00795793,3096.6,3096.2,2.61025968]
[1642572160404,0.00795793,3096.6,3096.2,2.91025968]
[1642572160702,0.0073895,3096.5,3096.3,1.46106]
[1642572160903,0.0073895,3096.5,3096.4,1.87271214]
[1642572161105,0.00682108,3096.4,3096.3,1.46106]
[1642572161354,0.0073895,3096.5,3096.3,0.49420193]
[1642572161556,0.00682108,3096.4,3096.3,7.34420193]
[1642572162057,0.00682108,3096.4,3096.3,8.34420193]
[1642572163259,0.00682108,3096.4,3096.3,11.08747859]
[1642572163458,0.0018165,3096.9,3096.4,6.86248758]
[1642572163661,1.65e-05,3096.9,3096.5,25.22792218]
[1642572163864,0.0018165,3098.4,3096.9,25.64]
[1642572164059,0.0018165,3098.4,3097.0,3.62506]
[1642572164258,0.0018165,3098.4,3098.1,1.14562211]
[1642572164460,0.5131765,3099.0,3098.1,1.25925485]
[1642572164660,0.5131765,3099.0,3097.4,2.0]
[1642572164661,0.80736,3098.8,3097.4,2.0]
[1642572164861,1.61680849,3098.7,3097.4,1.3]
[1642572165114,1.61680849,3098.7,3097.4,0.3]
[1642572165302,0.01023163,3098.6,3097.2,0.46106]
[1642572165501,0.01023163,3098.6,3097.9,1.38241302]
[1642572165701,0.0096632,3098.5,3097.9,1.38241302]
[1642572166100,2.91680849,3098.7,3097.9,1.38241302]
[1642572166101,0.00909478,3098.4,3097.9,1.38241302]
[1642572166401,0.00852636,3098.3,3097.9,1.38241302]
[1642572166603,0.00852636,3098.3,3098.1,1.32831835]
[1642572166801,2.91680849,3098.7,3098.1,1.32831835]
[1642572166802,0.00795793,3098.2,3098.1,1.32831835]
[1642572167002,0.00795793,3098.2,3097.9,1.38241302]
[1642572167403,0.00738951,3098.1,3097.5,0.02521575]
[1642572167803,0.00682109,3098.0,3097.5,1.575e-05]
[1642572168204,0.00625266,3097.9,3097.5,1.575e-05]
[1642572168603,0.00568424,3097.8,3097.5,1.575e-05]
[1642572168844,0.464,3098.3,3097.5,1.575e-05]
[1642572169147,1.8075132,3098.6,3097.9,1.2659598]
[1642572169148,0.00170527,3098.1,3097.9,1.2659598]
[1642572169445,1.32501685,3098.6,3097.6,0.00113684]
[1642572169647,0.80747,3098.4,3097.6,0.00113684]
[1642572169844,0.80747,3098.4,3097.6,0.0022737]
[1642572170251,1.61702266,3098.3,3097.6,0.0022737]
[1642572170648,0.80864684,3098.2,3097.6,0.0022737]
[1642572171248,0.80864684,3098.2,3097.8,0.03274207]
[1642572171649,1.61620854,3098.2,3097.8,0.03274207]
[1642572172249,2.61620854,3098.2,3097.8,0.03274207]
[1642572173305,2.61620854,3098.2,3097.8,4.207e-05]
[1642572173505,2.91620854,3098.2,3097.8,4.207e-05]
[1642572173708,0.82001772,3098.0,3097.8,4.207e-05]
[1642572173912,41.99995793,3097.8,3097.6,7.37e-05]
[1642572174108,41.9999263,3097.4,3096.6,0.0018165]
[1642572174308,0.464,3097.4,3096.6,0.0018165]
[1642572174509,1.0,3097.3,3096.7,0.00511581]
[1642572174708,0.4651,3097.4,3096.7,0.00511581]
[1642572174908,0.464,3097.4,3096.7,0.00511581]
[1642572175512,0.464,3097.4,3096.6,0.0018165]
[1642572175513,41.99488419,3096.7,3096.6,0.0018165]
[1642572175710,42.99488419,3096.7,3096.6,0.0018165]
[1642572175914,41.9981835,3096.6,3096.4,0.01248758]
[1642572176112,0.464,3096.6,3096.4,0.01248758]
[1642572176346,0.464,3096.6,3096.5,0.00113685]
[1642572176347,7.314,3096.6,3096.5,0.00113685]
[1642572176547,7.314,3096.6,3096.4,0.01248758]
[1642572176548,41.99886315,3096.5,3096.4,0.01248758]
[1642572176748,41.98751242,3096.3,3095.1,0.0018165]
[1642572176949,1.0,3096.4,3095.1,0.0018165]
[1642572177147,1.0,3096.4,3095.9,0.00341054]
[1642572177148,6.4556,3096.2,3095.9,0.00341054]
[1642572177547,1.0,3096.1,3095.9,0.00341054]
[1642572177747,6.4556,3096.0,3095.9,0.00341054]
[1642572178750,9.0415,3096.0,3095.9,0.00341054]
[1642572178948,9.0415,3096.0,3095.1,0.0018165]
[1642572178949,41.99658946,3095.9,3095.1,0.0018165]
[1642572179148,8.26375,3095.9,3095.1,0.0018165]
[1642572179748,8.26375,3095.9,3095.2,1.51600687]
[1642572179749,7.1641,3095.9,3095.2,1.51600687]
[1642572179950,7.1641,3095.9,3095.2,1.51998583]
[1642572180203,7.1641,3095.9,3095.2,1.81998583]
[1642572180204,6.1641,3095.9,3095.2,1.81998583]
[1642572180407,6.1641,3095.9,3095.3,4.66293015]
[1642572180608,6.1641,3095.9,3095.4,3.89182515]
[1642572180803,6.1641,3095.9,3095.5,2.7444318]
[1642572181003,6.1641,3095.9,3095.5,2.74670549]
[1642572181204,6.1641,3095.9,3095.6,0.00170527]
[1642572181503,0.01987874,3095.8,3095.6,0.00170527]
[1642572181903,1.61838485,3095.7,3095.6,0.00170527]
[1642572182104,0.01987874,3095.8,3095.7,2.77257083]
[1642572182606,0.01987874,3095.8,3095.7,2.72370767]
[1642572183847,0.01987874,3095.8,3095.7,7.37034737]
[1642572184045,0.01987874,3095.8,3095.7,5.46806012]
[1642572184446,0.01987874,3095.8,3095.7,7.35418882]
[1642572184650,0.01987874,3095.8,3095.7,7.65418882]
[1642572184847,7.6936,3097.0,3095.7,7.65418882]
[1642572184848,7.6936,3097.0,3095.8,6.85]
[1642572185049,0.8470347,3097.3,3096.0,0.12841264]
[1642572185250,0.00568424,3096.9,3096.2,0.09158194]
[1642572185450,0.00738951,3097.2,3096.3,2.74435245]
[1642572185652,1.61791354,3096.6,3096.4,3.9299399]
[1642572185855,1.61791354,3096.6,3096.5,11.66353989]
[1642572186052,1.61791354,3096.6,3096.5,6.31353989]
[1642572186253,1.61526,3097.6,3097.0,1.34665394]
[1642572186651,0.00909478,3097.5,3097.3,1.16048857]
[1642572187054,3.65852635,3097.4,3097.3,1.16048857]
[1642572187456,0.00852635,3097.4,3097.3,1.16048857]
[1642572188503,0.00852635,3097.4,3097.3,3.30861792]
[1642572188703,0.00852635,3097.4,3097.3,1.46048857]
[1642572189898,0.80748,3098.1,3098.0,1.25797297]
[1642572189899,0.52472285,3098.1,3098.0,1.25797297]
[1642572190098,0.52472285,3098.1,3097.7,1.52442072]
[1642572190099,6.98042285,3098.1,3097.7,1.52442072]
[1642572190502,6.98042285,3098.1,3096.9,1.3]
[1642572190705,1.61723324,3097.9,3096.9,0.3]
[1642572190905,2.42476324,3097.9,3097.0,0.00227369]
[1642572191106,0.0022737,3097.8,3097.0,0.00227369]
[1642572191344,0.0022737,3097.8,3097.5,1.20070574]
[1642572191546,0.00170528,3097.7,3097.5,1.20070574]
[1642572191946,0.00113685,3097.6,3097.5,1.20070574]
[1642572194150,0.00113685,3097.6,3097.5,4.40070574]
[1642572194951,1.32567009,3097.9,3097.5,4.40070574]
[1642572195411,0.00113685,3097.8,3097.5,4.40070574]
[1642572195610,0.00113685,3097.8,3097.6,0.06649233]
[1642572196012,0.00113685,3097.8,3097.5,4.40070574]
[1642572196314,0.00113685,3097.8,3097.6,0.02544748]
[1642572200047,6.16333685,3098.1,3097.6,3.07544748]
[1642572200254,1.61718093,3098.0,3097.6,0.02544748]
[1642572200555,1.61831778,3098.0,3097.6,0.02544748]
[1642572201359,1.61831778,3098.0,3097.7,1.32147088]
[1642572202158,1.61831778,3098.0,3097.8,2.74284159]
[1642572202609,1.61831778,3098.0,3097.9,8.45]
[1642572202795,1.61831778,3098.0,3097.9,11.19284159]
[1642572202996,4.81675463,3098.1,3098.0,6.85]
[1642572203196,4.81675463,3098.1,3098.0,9.59284159]
[1642572203395,4.81675463,3098.1,3098.0,10.59284159]
[1642572204394,4.81675463,3098.1,3098.0,11.8955882]
[1642572205200,4.51715463,3098.1,3098.0,11.8955882]
[1642572205799,4.51715463,3098.1,3098.0,12.0566482]
[1642572206450,4.51715463,3098.1,3098.0,12.08207846]
[1642572209456,4.51715463,3098.1,3098.0,12.08166676]
[1642572209654,4.51715463,3098.1,3098.0,30.87166676]
[1642572210301,4.22575463,3098.1,3098.0,12.08166676]
[1642572210703,4.22575463,3098.1,3098.0,9.33923687]
[1642572210901,4.22575463,3098.1,3098.0,5.23172264]
[1642572211102,4.22575463,3098.1,3098.0,2.48923687]
[1642572211502,4.22575463,3098.1,3098.0,0.02543026]
[1642572211705,4.17575463,3098.1,3098.0,0.02543026]
[1642572211910,4.17575463,3098.1,3097.5,3.18353974]
[1642572212403,2.4225046,3098.0,3097.6,0.0022737]
[1642572213403,4.48495894,3098.0,3097.6,0.0022737]
[1642572213706,8.4652766,3097.8,3097.5,3.13581344]
[1642572213983,7.65765,3097.6,3097.5,3.13581344]
[1642572214282,10.00838472,3097.6,3097.5,3.13581344]
[1642572214487,11.00838472,3097.6,3097.5,3.13581344]
[1642572214982,0.80773,3097.2,3095.9,3.44616]
[1642572215184,0.80773,3097.2,3096.0,2.74378639]
[1642572215185,2.4231895,3096.9,3096.0,2.74378639]
[1642572215385,2.1208895,3096.9,3096.0,3.75288116]
[1642572215586,3.8654,3097.4,3096.1,2.74378639]
[1642572215587,2.12025782,3097.3,3096.1,2.74378639]
[1642572215786,3.8654,3097.4,3096.1,2.74378639]
[1642572215984,1.0,3097.3,3096.2,0.00795793]
[1642572216185,1.61770415,3097.0,3096.5,1.10115613]
[1642572216586,1.61770415,3097.0,3096.6,0.00568423]
[1642572216994,1.61770415,3097.0,3096.7,1.30967398]
[1642572217187,0.80769,3097.3,3096.7,1.30967398]
[1642572217386,0.80769,3097.3,3096.8,0.00454739]
[1642572218398,0.30369003,3096.6,3096.5,1.10115613]
[1642572218799,0.30369003,3096.6,3096.5,2.29105386]
[1642572220001,0.30369003,3096.6,3096.5,2.59105386]
[1642572220606,0.30369003,3096.6,3096.5,7.74105386]
[1642572220607,0.00649003,3096.6,3096.5,7.74105386]
[1642572220908,0.00649003,3096.6,3096.5,30.57467481]
[1642572221106,0.0022737,3097.2,3096.6,1.61467]
[1642572221355,0.0022737,3097.2,3096.7,4.94029265]
[1642572221554,0.00170527,3097.1,3096.9,18.79]
[1642572221753,0.00170527,3097.1,3097.0,12.11184906]
[1642572221951,8.6188,3098.3,3097.2,0.80725]
[1642572222157,7.4326,3098.3,3097.3,2.19107209]
[1642572222351,0.00682109,3098.0,3097.3,2.79107209]
[1642572222554,1.61733786,3097.7,3097.4,1.0]
[1642572222756,1.61733786,3097.7,3097.5,1.89480692]
[1642572222953,1.61733786,3097.7,3097.6,4.27497199]
[1642572223153,1.61733786,3097.7,3097.6,6.12489173]
[1642572223354,1.62245368,3097.7,3097.6,4.27497199]
[1642572223552,1.62245368,3097.7,3097.6,6.10894758]
[1642572223955,1.62245368,3097.7,3097.6,24.89894758]
[1642572224158,1.62245368,3097.7,3097.6,28.80278527]
[1642572224558,0.00511582,3097.7,3097.6,8.85172527]
[1642572224762,0.00511582,3097.7,3097.6,6.10894758]
[1642572225417,0.00511582,3097.7,3097.6,9.30894758]
[1642572225618,3.88797045,3098.1,3097.7,5.69273441]
[1642572226017,0.00170527,3098.0,3097.7,5.99273441]
[1642572226417,0.00113684,3097.9,3097.7,5.99273441]
[1642572226815,0.00113684,3097.9,3097.7,6.29273441]
[1642572227015,0.00113684,3097.9,3097.7,1.94273441]
[1642572227216,0.00113684,3097.9,3097.7,1.64273441]
[1642572227419,0.00113684,3097.9,3097.7,1.94273441]
[1642572227615,0.00113684,3097.9,3097.7,1.34273441]
[1642572228016,0.00113684,3097.9,3097.7,1.64273441]
[1642572228867,0.00113684,3097.9,3097.7,3.55164129]
[1642572229066,0.00113684,3097.9,3097.7,1.64273441]
[1642572229267,0.00113684,3097.9,3097.7,1.94273441]
[1642572229465,0.00113684,3097.9,3097.8,2.74285453]
[1642572229667,0.00113684,3097.9,3097.7,2.94273441]
[1642572230767,3.59450729,3098.1,3097.7,1.64273441]
[1642572231371,0.02498468,3097.9,3097.7,1.64273441]
[1642572231573,0.02498468,3097.9,3097.7,1.34273441]
[1642572232371,0.02498468,3097.9,3097.7,1.64273441]
[1642572232626,0.02498468,3097.9,3097.7,3.10164855]
[1642572232826,0.02498468,3097.9,3097.7,2.80164855]
[1642572233426,0.02498468,3097.9,3097.7,3.10164855]
[1642572233629,0.02498468,3097.9,3097.7,1.64273441]
[1642572233829,0.02498468,3097.9,3097.7,1.34273441]
[1642572235832,3.59450729,3098.1,3097.7,1.34273441]
[1642572236032,3.59450729,3098.1,3097.6,2.92534423]
[1642572236033,5.55,3098.0,3097.6,2.92534423]
[1642572236367,0.022826,3097.8,3097.7,0.00113684]
[1642572237156,0.022826,3097.8,3097.6,1.30909089]
[1642572237461,0.022826,3097.8,3097.6,2.80146094]
[1642572238765,1.64014438,3097.8,3097.6,2.80146094]
[1642572240712,1.64014438,3097.8,3097.6,1.30909089]
[1642572240915,1.34264438,3097.8,3097.6,1.30909089]
[1642572242013,0.80749,3097.7,3097.6,1.30909089]
[1642572242415,1.80749,3097.7,3097.6,1.30909089]
[1642572243215,0.30850859,3097.2,3096.4,1.95314109]
[1642572243416,1.11614859,3097.2,3096.5,2.74361027]
[1642572243718,1.11614859,3097.2,3096.6,1.45240072]
[1642572243985,0.30850859,3097.2,3096.7,2.74361027]
[1642572244186,0.30850859,3097.2,3096.7,2.74929451]
[1642572244384,0.30850859,3097.2,3096.8,2.74361027]
[1642572244584,1.11612859,3097.2,3097.0,1.44661167]
[1642572244884,1.11612859,3097.2,3097.1,0.00341055]
[1642572245387,1.11612859,3097.2,3097.0,0.00397897]
[1642572245591,2.11612859,3097.2,3097.0,0.00397897]
[1642572245785,2.92385959,3097.2,3096.8,3.2]
[1642572245984,2.63345959,3097.2,3096.9,0.00454739]
[1642572246383,2.324951,3097.2,3096.9,0.00454739]
[1642572246584,0.80762,3097.2,3096.9,0.00454739]
[1642572246785,0.464,3097.6,3096.9,0.00454739]
[1642572246786,0.80756,3097.5,3096.9,0.00454739]
[1642572246986,0.80756,3097.5,3096.8,1.5865815]
[1642572247186,0.00284211,3097.4,3096.8,1.5865815]
[1642572247487,0.00227369,3097.3,3097.1,1.1966704]
[1642572247707,0.00227369,3097.3,3097.2,1.16964817]
[1642572247907,0.80751,3097.7,3097.2,1.16964817]
[1642572248307,0.00284211,3097.4,3097.2,1.16964817]